Cogmind - Beta 17 @@@ ROGUE MODE // 2026.07.14 @ 15:18:39 // Winter2019/RPGLIKE Player: Gallgagger Result: Self-destructed Performance ------------- Evolutions (1) 500 Regions Visited (6) 1200 Robots Destroyed (4) 20 Value Destroyed (19) 19 Prototype IDs (6) 120 Alien Tech Used (0) 0 Bonus (321) 321 TOTAL SCORE: 2180 Bonus ------- Follower Combat Kills 21 Aligned with FarCom 300 Cogmind --------- Core Integrity 523/1200 Matter 250/300 Energy 334/340 System Corruption 2% Temperature Cool (0) Movement Walking (100) Location -8/Mines Parts ------- > --- POWER (1) -------- Graviton Reactor > --- PROPULSION (1) --- Enhanced Biometal Leg > --- UTILITY (3) ------ Experimental Heat Sink Experimental Heat Sink Thermal Barrier > --- WEAPON (1) ------- Guided Plasma Cannon > --- INVENTORY (0) ---- (None) Peak State ------------ > --- POWER ------------ Graviton Reactor > --- PROPULSION ------- Enhanced Biometal Leg > --- UTILITY ---------- Experimental Heat Sink Experimental Heat Sink Thermal Barrier > --- WEAPON ----------- Guided Plasma Cannon > --- INVENTORY -------- (None) [Rating: 50] Favorites ----------- Power Graviton Reactor Reactor Graviton Reactor Propulsion Flight Unit Leg Enhanced Biometal Leg Flight Unit Flight Unit Utility Experimental Heat Sink Device Experimental Heat Sink Weapon Guided Plasma Cannon Energy Cannon Guided Plasma Cannon Build | -11 -10 -10 -9 -9 -9 -8 ------- Run | Yrd Mat Min Mat Min Exi Min Slots Evolved 2 | . . . . . . 2 Power . | . . . . . . . Propulsion . | . . . . . . . Utility 2 | . . . . . . 2 Weapon . | . . . . . . . Parts Attached 9 | . 1 . 1 . 2 5 Power 1 | . . . . . . 1 Engine . | . . . . . . . Core . | . . . . . . . Reactor 1 | . . . . . . 1 Propulsion 3 | . 1 . 1 . . 1 Treads . | . . . . . . . Leg 1 | . . . . . . 1 Wheel . | . . . . . . . Hover . | . . . . . . . Flight 2 | . 1 . 1 . . . Utility 4 | . . . . . 1 3 Device 4 | . . . . . 1 3 Storage . | . . . . . . . Processor . | . . . . . . . Hackware . | . . . . . . . Protection . | . . . . . . . Artifact . | . . . . . . . Weapon 1 | . . . . . 1 . Energy Gun . | . . . . . . . Energy Cannon 1 | . . . . . 1 . Ballistic Gun . | . . . . . . . Ballistic Cannon . | . . . . . . . Launcher . | . . . . . . . Special Weapon . | . . . . . . . Impact Weapon . | . . . . . . . Slashing Weapon . | . . . . . . . Piercing Weapon . | . . . . . . . Special Melee Weapon . | . . . . . . . Unidentified Prototypes 6 | . . . . . 2 4 Parts Lost . | . . . . . . . Power . | . . . . . . . Propulsion . | . . . . . . . Utility . | . . . . . . . Weapon . | . . . . . . . Highest Loss Streak . | . . . . . . . To Critical Strikes . | . . . . . . . Average Backups . | . . . . . . . Power . | . . . . . . . Propulsion . | . . . . . . . Utility . | . . . . . . . Weapon . | . . . . . . . Tool/Special . | . . . . . . . Unused Backups . | . . . . . . . Power . | . . . . . . . Propulsion . | . . . . . . . Utility . | . . . . . . . Weapon . | . . . . . . . Tool/Special . | . . . . . . . Average Slot Usage (%) 32 | . 5 25 25 25 37 53 Flight 21 | . 5 25 25 25 25 24 Device 1 | . . . . . 2 4 Energy Cannon 9 | . . . . . 10 24 Peak Build Rating 50 | . 1 1 1 1 9 50 Average Rating 4 | . . 1 1 1 4 11 On Entrance 1 | . . 1 1 1 1 9 Avg Prop Armor Cover (%) . | . . . . . . . Naked Turns 115 | . 115 . . . . . Heaviest Build 26 | . . . . . 10 26 Greatest Support 40 | 3 4 4 4 4 14 40 Greatest Overweight (x) 1 | . . . . . . 1 Average Overweight (x) . | . . . . . . . Largest Inventory Capacity . | . . . . . . . Average Capacity . | . . . . . . . Most Carried . | . . . . . . . Average Carried . | . . . . . . . Final Capacity . | . . . . . . . Final Carried . | . . . . . . . Class Distribution -------------------- 100% | Mutant Dominant Class ---------------- Mutant | -10/Materials Mutant | -10/Mines Mutant | -9/Materials Mutant | -9/Mines Mutant | -9/Exiles Mutant | -8/Mines Resources | -11 -10 -10 -9 -9 -9 -8 ----------- Run | Yrd Mat Min Mat Min Exi Min Matter Collected 245 | 30 28 150 . 10 . 27 Remotely . | . . . . . . . Salvage Created 80 | 30 28 . . . . 22 Parts 15 | 3 2 . . . . 10 Haulers Intercepted . | . . . . . . . Recyclers Shooed 1 | 1 . . . . . . Parts Field Recycled . | . . . . . . . Retrieved Matter . | . . . . . . . Parts Self-Destructed . | . . . . . . . Prevented . | . . . . . . . Parts Restored . | . . . . . . . Kills | -11 -10 -10 -9 -9 -9 -8 ------- Run | Yrd Mat Min Mat Min Exi Min Combat Hostiles Destroyed 2 | . 1 . . . . 1 Melee 1 | . 1 . . . . . Cannons 1 | . . . . . . 1 Classes Destroyed 3 | 1 1 . . . . 1 Worker 1 | . . . . . . 1 Tunneler 1 | 1 . . . . . . Swarmer 1 | . 1 . . . . . Best Kill Streak 1 | 1 1 . . . . 1 Combat Bots Only 1 | . 1 . . . . 1 Max Kills in Single Turn 1 | 1 1 . . . . 1 Gunslinging . | . . . . . . . Exploded . | . . . . . . . Melee 1 | . 1 . . . . . Uniques/NPCs Destroyed 1 | . . . . . . 1 NK-0LA (-8/Mines) Combat | -11 -10 -10 -9 -9 -9 -8 -------- Run | Yrd Mat Min Mat Min Exi Min Hostile Shots Fired 202 | . 26 . 83 53 . 40 Missed 110 | . 14 . 46 24 . 26 Hits 92 | . 12 . 37 29 . 14 Projectile 92 | . 12 . 37 29 . 14 Critical Strikes 1 | . . . . . . 1 Damage Taken 1034 | 11 103 . 392 250 . 278 Core 992 | 11 103 . 377 242 . 259 Absorbed by Shields . | . . . . . . . Redirected to Core 147 | . . . 54 25 . 68 Core Remaining (%) 89 | 98 . 81 . . . . Volleys Fired 32 | . . . . . 1 31 Largest 1 | . . . . . 1 1 Hottest 120 | . . . . . 120 120 Shots Fired 32 | . . . . . 1 31 Gun . | . . . . . . . Cannon 32 | . . . . . 1 31 Launcher . | . . . . . . . Special . | . . . . . . . Kinetic . | . . . . . . . Thermal 32 | . . . . . 1 31 Explosive . | . . . . . . . Electromagnetic . | . . . . . . . Robot Hit Streak . | . . . . . . . Robot Miss Streak . | . . . . . . . Penetration Max . | . . . . . . . Secondary Targets . | . . . . . . . Shots Hit Robots . | . . . . . . . Core Hits 9 | 2 1 . . . . 6 Critical Kills . | . . . . . . . Critical Parts Destroyed . | . . . . . . . Critical Strikes . | . . . . . . . Melee Attacks . | . . . . . . . Impact . | . . . . . . . Slashing . | . . . . . . . Piercing . | . . . . . . . Sneak Attacks . | . . . . . . . Combat Hostiles . | . . . . . . . Follow-up Attacks . | . . . . . . . Damage Inflicted 457 | 22 7 . . . . 428 Guns . | . . . . . . . Cannons 428 | . . . . . . 428 Explosions . | . . . . . . . Melee . | . . . . . . . Ramming 29 | 22 7 . . . . . Kinetic . | . . . . . . . Thermal 428 | . . . . . . 428 Explosive . | . . . . . . . Electromagnetic . | . . . . . . . Impact . | . . . . . . . Slashing . | . . . . . . . Piercing . | . . . . . . . Highest Corruption 2 | . . . . . . 2 Average Corruption 1 | . . . . . . 1 Corruption Purged . | . . . . . . . Corruption Blocked . | . . . . . . . Effects 4 | . . . . . . 4 Message Errors 1 | . . . . . . 1 Matter Fused 1 | . . . . . . 1 Heat Flow Errors 1 | . . . . . . 1 Alerts 1 | . . . . . . 1 Overload Shots . | . . . . . . . Overflow Damage . | . . . . . . . Projectiles . | . . . . . . . Explosions . | . . . . . . . Melee . | . . . . . . . Knockbacks . | . . . . . . . Impact . | . . . . . . . Kinetic . | . . . . . . . Secondary . | . . . . . . . Self-Inflicted Damage 14 | 11 3 . . . . . Shots . | . . . . . . . Rammed 5 | 2 3 . . . . . Targets Rammed 5 | 2 3 . . . . . Kicked . | . . . . . . . Crushed . | . . . . . . . Highest Temperature 275 | . . . . . 74 275 Average Temperature 48 | . . . . . 40 49 Received Heat Transfer 129 | . 18 . 102 9 . . Siege Activations . | . . . . . . . Martial Activations . | . . . . . . . Shielding Activations . | . . . . . . . Robots Disrupted . | . . . . . . . Combat Hostiles . | . . . . . . . Robots Corrupted . | . . . . . . . Combat Hostiles . | . . . . . . . Parts Fried . | . . . . . . . Impact Corruptions . | . . . . . . . Robots Melted . | . . . . . . . Combat Hostiles . | . . . . . . . Parts Melted 1 | . . . . . . 1 Heat Transferred 540 | . . . . . . 540 Parts Sabotaged . | . . . . . . . Parts Stolen . | . . . . . . . Parts Stripped . | . . . . . . . Power Chain Reactions . | . . . . . . . Alert | -11 -10 -10 -9 -9 -9 -8 ------- Run | Yrd Mat Min Mat Min Exi Min Maximum Alert Level 1 | . . . . 1 . . Low Security (%) 95 | 100 100 100 100 85 . 100 Level 1 4 | . . . . 14 . . Level 2 . | . . . . . . . Level 3 . | . . . . . . . Level 4 . | . . . . . . . Level 5 . | . . . . . . . High Security . | . . . . . . . Max Security . | . . . . . . . Peak Influence 232 | 5 93 31 31 232 . 20 Initial 31 | . 3 31 11 7 . . Average 37 | 2 9 31 12 111 . 2 Influence Increases 516 | 5 103 . 30 342 . 36 Destroy 0b10 Robot/C 140 | . 20 . . 120 . . Destroy 0b10 Robot/NC 10 | 5 . . . . . 5 Destroy Leader 20 | . . . . 20 . . Allied During Kill 7 | . . . . 7 . . Successful Hack 8 | . 8 . . . . . Destroy Structure 1 | . . . . . . 1 Lose Combat Pursuer 330 | . 75 . 30 195 . 30 Influence Decreases 516 | . 25 52 40 131 232 36 Entered New Map 320 | . 2 52 20 14 232 . Time Decay 176 | . 23 . 20 97 . 36 Lost Ally 20 | . . . . 20 . . Squads Dispatched 4 | . 3 . 1 . . . Investigation 3 | . 3 . . . . . Extermination . | . . . . . . . Reinforcement 1 | . . . 1 . . . Assault . | . . . . . . . Garrison . | . . . . . . . Intercept . | . . . . . . . Searches Triggered . | . . . . . . . Construction Impeded . | . . . . . . . Haulers Reinforced . | . . . . . . . Active Scanning Responses . | . . . . . . . Cargo Convoy Interrupts . | . . . . . . . Stealth | -11 -10 -10 -9 -9 -9 -8 --------- Run | Yrd Mat Min Mat Min Exi Min Distress Signals 1 | . . . 1 . . . Communications Jammed . | . . . . . . . Distress Signals . | . . . . . . . Times Spotted 52 | . 11 . 17 18 . 6 Peak Tracking Total 14 | . 10 . 14 5 9 5 Tactical Retreats 8 | . 1 . 1 4 . 2 Traps | -11 -10 -10 -9 -9 -9 -8 ------- Run | Yrd Mat Min Mat Min Exi Min Traps Triggered 2 | . 2 . . . . . Indirectly . | . . . . . . . Trap Hack Attempts . | . . . . . . . Triggered . | . . . . . . . Disarmed . | . . . . . . . Reprogrammed . | . . . . . . . Reused . | . . . . . . . Traps Extracted . | . . . . . . . Installed . | . . . . . . . Triggered . | . . . . . . . Machines | -11 -10 -10 -9 -9 -9 -8 ---------- Run | Yrd Mat Min Mat Min Exi Min Machines Disabled 1 | . . . . . 1 . Max in Single Turn 1 | . . . . . 1 . Machines Repaired . | . . . . . . . Machines Dismantled . | . . . . . . . Machines Sabotaged . | . . . . . . . Overloaded Fab Kills . | . . . . . . . Hacking | -11 -10 -10 -9 -9 -9 -8 --------- Run | Yrd Mat Min Mat Min Exi Min Machines Accessed 3 | . 3 . . . . . Terminals 3 | . 3 . . . . . Fabricators . | . . . . . . . Repair Stations . | . . . . . . . Recycling Units . | . . . . . . . Scanalyzers . | . . . . . . . Garrison Access . | . . . . . . . Total Hacks 6 | . 6 . . . . . Successful 1 | . 1 . . . . . Failed 5 | . 5 . . . . . Catastrophic 1 | . 1 . . . . . Database Lockouts . | . . . . . . . Manual 7 | . 6 . . . 1 . Terminals 6 | . 6 . . . . . Fabricators . | . . . . . . . Repair Stations . | . . . . . . . Recycling Units . | . . . . . . . Scanalyzers . | . . . . . . . Garrison Access . | . . . . . . . Terminal Hacks 1 | . 1 . . . . . Branch Access Points 1 | . 1 . . . . . Fabricator Hacks . | . . . . . . . Repair Station Hacks . | . . . . . . . Recycling Unit Hacks . | . . . . . . . Scanalyzer . | . . . . . . . Garrison Access Hacks . | . . . . . . . Unauthorized Hacks . | . . . . . . . Terminals . | . . . . . . . Fabricators . | . . . . . . . Repair Stations . | . . . . . . . Recycling Units . | . . . . . . . Scanalyzers . | . . . . . . . Garrison Access . | . . . . . . . Data Cores Recovered . | . . . . . . . Used . | . . . . . . . Hacking Detections 3 | . 3 . . . . . Full Trace Events 2 | . 2 . . . . . Feedback Events . | . . . . . . . Feedback Blocked . | . . . . . . . Robot Schematics Acquired . | . . . . . . . Robots Built . | . . . . . . . Authchips . | . . . . . . . Time . | . . . . . . . Total Robot Build Rating . | . . . . . . . Part Schematics Acquired . | . . . . . . . Parts Built . | . . . . . . . Authchips . | . . . . . . . Time . | . . . . . . . Total Part Build Rating . | . . . . . . . Part Studies Acquired . | . . . . . . . Parts Repaired . | . . . . . . . Time . | . . . . . . . Parts Recycled . | . . . . . . . Recycled Matter . | . . . . . . . Retrieved Matter . | . . . . . . . Retrieved Components . | . . . . . . . Parts Scanalyzed . | . . . . . . . Part Schematics Acquired . | . . . . . . . Parts Damaged . | . . . . . . . Bothacking | -11 -10 -10 -9 -9 -9 -8 ------------ Run | Yrd Mat Min Mat Min Exi Min Used RIF Installer . | . . . . . . . Robots Hacked . | . . . . . . . Non-combat . | . . . . . . . Combat . | . . . . . . . Robot Hacks Applied . | . . . . . . . Relay Couplers Released . | . . . . . . . Fabnet Peak Effective % . | . . . . . . . Robots Rewired . | . . . . . . . Allies Hacked . | . . . . . . . Hacks Repelled . | . . . . . . . Allies | -11 -10 -10 -9 -9 -9 -8 -------- Run | Yrd Mat Min Mat Min Exi Min Total Allies 3 | . . . . 3 . . Largest Group 3 | . . . . 3 . . Highest-Rated Group 40 | . . . . 40 . . Highest-Rated Ally 16 | . . . . 16 . . Total Orders . | . . . . . . . Ally Attacks 22 | . . . . 22 . . Total Damage 168 | . . . . 168 . . Kills 6 | . . . . 6 . . Allies Corrupted . | . . . . . . . Allies Melted . | . . . . . . . Intel | -11 -10 -10 -9 -9 -9 -8 ------- Run | Yrd Mat Min Mat Min Exi Min Active Infowar (turns) 1 | . . . . . 1 . Cloaking 1 | . . . . . 1 . Robot Analysis Total . | . . . . . . . Derelict Logs Recovered 3 | . . . . 3 . . Drone Launches . | . . . . . . . Drone Recoveries . | . . . . . . . Exploration | -11 -10 -10 -9 -9 -9 -8 ------------- Run | Yrd Mat Min Mat Min Exi Min Turns Passed 803 | 11 144 11 54 211 92 280 Spaces Moved 1471 | 18 289 28 131 508 217 280 Core 239 | 18 221 . . . . . Treads . | . . . . . . . Legs 2 | . . . . . . 2 Wheels . | . . . . . . . Hover . | . . . . . . . Flight 1230 | . 68 28 131 508 217 278 Fastest Speed 40 | 50 40 40 40 40 40 40 Average Speed 41 | 50 47 40 40 40 40 41 Slowest Speed 120 | 50 50 40 40 40 40 120 Overloaded Moves . | . . . . . . . Propulsion Burnouts . | . . . . . . . Robots Hopped 23 | . . 1 8 14 . . Potential Cave-ins . | . . . . . . . Cave-ins Triggered . | . . . . . . . Exploration Rate (%) 36 | 3 47 13 20 91 61 17 Regions Visited 6 Branch Regions 4 Pre-discovered Areas 1 | . . . . 1 . . Known Exits Taken 1 | . 1 . . . . . Unknown Exits Taken 5 | 1 . 1 1 1 1 . Scrap Searched 3 | . . 1 . 2 . . Spaces Dug . | . . . . . . . Terrain Destroyed 1 | . . . . . . 1 Melee . | . . . . . . . Projectile 1 | . . . . . . 1 AOE . | . . . . . . . Terrain Rammed . | . . . . . . . Walls Destroyed . | . . . . . . . Machines Disabled . | . . . . . . . Actions | -11 -10 -10 -9 -9 -9 -8 --------- Run | Yrd Mat Min Mat Min Exi Min Total 1593 | 19 293 26 124 501 220 410 Wait 88 | . . . . 8 . 80 Move 1422 | 17 288 25 115 481 216 280 Hop 20 | . . 1 7 12 . . Pick Up . | . . . . . . . Fast Attach 8 | . 2 . . . 2 4 Attach . | . . . . . . . Detach . | . . . . . . . Swap 2 | . . . 1 . . 1 Drop 2 | . . . 1 . 1 . Fire 32 | . . . . . 1 31 Melee . | . . . . . . . Ram 5 | 2 3 . . . . . Kick . | . . . . . . . Crush . | . . . . . . . Escape Stasis . | . . . . . . . Rewire . | . . . . . . . Trap . | . . . . . . . Miscellaneous 14 | . . . . . . 14 Route ------- -11/Scrapyard -10/Materials (discovered 3 exits: [*Mat x2] / *Min) -10/Mines -9/Materials -9/Mines (discovered 3 exits: *Mat x2 / *Exi) -9/Exiles -8/Mines History --------- Turn | Location | Event 3 | -11/Scrapyard | Discovered new exit (range 15) 12 | -11/Scrapyard | Entered Materials 64 | -10/Materials | Discovered new exit (range 5) 109 | -10/Materials | Discovered new exit (range 8) 120 | -10/Materials | Identified exit to Mines 156 | -10/Materials | Entered Mines 162 | -10/Mines | Discovered new exit (range 12) 163 | -10/Mines | Found DCF Scrap (12 items) 167 | -10/Mines | Entered Materials 169 | -9/Materials | Reached level 2 200 | -9/Materials | Core integrity fell below 50% 215 | -9/Materials | Discovered new exit (range 13) 218 | -9/Materials | Core integrity fell below 20% 221 | -9/Materials | Entered Mines 226 | -9/Mines | Discovered new exit (range 12) 280 | -9/Mines | Identified exit to Materials 289 | -9/Mines | Assisted by bots powering up and referring to "LRC-V3" 302 | -9/Mines | Build established: Mutant 354 | -9/Mines | Reached level 3 368 | -9/Mines | Learned location of Zion (-6) 422 | -9/Mines | Learned location of 2 exits from Materials 430 | -9/Mines | Deemed a non-threat by the Exiles lab entrance 431 | -9/Mines | Discovered new exit (range 5) 432 | -9/Mines | Entered Exiles 442 | -9/Exiles | Met 8R-AWN 449 | -9/Exiles | Met EX-HEX 460 | -9/Exiles | Met EX-BIN 465 | -9/Exiles | Aligned with FarCom system 465 | -9/Exiles | Given EX-Vault access code 477 | -9/Exiles | Opened EX-Vault 479 | -9/Exiles | Found Prototype Device 479 | -9/Exiles | Identified Cloak of Protection 482 | -9/Exiles | Found Prototype Energy Cannon 482 | -9/Exiles | Identified Gui. Plasma Cannon 491 | -9/Exiles | Warned to stay clear of 0b10 Research branches 505 | -9/Exiles | Met EX-DEC 511 | -9/Exiles | Attacked by the Exiles 521 | -9/Exiles | Discovered new exit (range 10) 524 | -9/Exiles | Left Exiles lab with Gui. Plasma Cannon 524 | -9/Exiles | Entered Mines 530 | -8/Mines | NK-0LA came to Exiles' defense 765 | -8/Mines | Destroyed NK-0LA 775 | -8/Mines | Upgraded with Utility slot (x2) 780 | -8/Mines | Found Prototype Device 780 | -8/Mines | Identified Thermal Barrier 804 | -8/Mines | Self-destructed Last Messages --------------- 00760_ U-05 Engineer builds a Wall. 00762_ K-01 Serf collects debris. 00764_ U-05 Engineer builds a Wall. 00765_ K-01 Serf collects debris. 00769_ R-06 Scavenger collects Wheel. 00769_ U-05 Engineer lays Concrete. 00773_ R-06 Scavenger collects Flight Unit. 00775_ U-05 Engineer lays Concrete. 00775_ Upgraded: Utility Slot (+2) 00775_ Acquired Prototype Device. 00775_ Identified Exp. Heat Sink. 00777_ Acquired Exp. Heat Sink. 00778_ System corrupted: IFF burst signal emitted. 00780_ Acquired Prototype Device. 00780_ Identified Thermal Barrier. 00793_ Used Protomatter to restore core integrity (+273, depleted) 00795_ Acquired Prototype Reactor. 00795_ Identified Graviton Reactor. 00801_ Acquired Prototype Leg. 00801_ Identified Enh. Biometal Leg. Map ----- +----------------------------------------------------+ | | | | | | | | | | | | | | | | | | | | | | | | | ??????????????????????????????????? | | ????######???#####?????####???????? | | ???## #### ###### ##??????? | | ???# ##?????? | | ???# ##????? | | ????# #### ##???? | | ?????# =[ #??## #???? | | ?????# *%##???## #???? | | ?????# %##????# ## #???? | | ????## ##???# #?##???? | | ???## #???# #??????? | | ??## #???#=!#??????? | | ??# ##???#! #??????? | | ?? ##????#@!#??????? | | ?? ""%" #?????# #??????? | | ???? """" #?????# #??????? | | ?????? """" %####### ##?????? | | ?????# % ## %[ ##????? | | ?????## ## *%* #????? | | ??????## #?## * #????? | | ???????######???## *% ##????? | | ?????????????????# ##?????? | | ?????????????????# ##??????? | | ????????????????# ####???????? | | ????????????????# ###?????????? | | ???????????????# %##???????????? | | ?????????????? % ##???????????? | | ?????????????#### ###???????????? | | ????????????????## ##????????????? | | ?????????????????# #?????????????? | | ?????????????????# #?????????????? | | ????????????????? #?????????????? | | ????????????????? ??????????????? | | ??????????????????##??????????????? | | ??????????????????????????????????? | | ??????????????????????????????????? | | ??????????????????????????????????? | | ??????????????????????????????????? | +----------------------------------------------------+ Best States ------------- Heat Dissipation 113 Energy Generation 44 Energy Capacity 340 Matter Stores 300 Matter Capacity 300 Sight Range 16 Terrain Scan Density 10 Cloak Strength 5 Resistance: TH 50 Evasion (%) 62 Item Schematics ----------------- None Robot Schematics ------------------ None Fabricated ------------ Nothing Repaired ---------- Nothing Studied --------- None Alien Tech Used ----------------- None Achievements -------------- None Challenges ------------ None RPGLIKE | -11 -10 -10 -9 -9 -9 -8 --------- Run | Yrd Mat Min Mat Min Exi Min Levels Raised 2 | . . . 1 1 . . XP Earned 7199 | 3000 140 500 1500 1209 350 500 XP Spent 5210 | . . . . 480 700 4030 Upgrades 25 | . . . . 8 2 15 Utility Slot 2 | . . . . . . 2 Core Integrity 12 | . . . . 8 . 4 Heat Dissipation 6 | . . . . . . 6 Energy Generation 3 | . . . . . . 3 Mass Support 2 | . . . . . 2 . Protomatter Created 91 | . . . . . . 91 Integrity Restored 315 | . . . . . . 315 Core 315 | . . . . . . 315 Protomatter Decayed 52 | . . . 10 42 . . Game ------ Seed HelicalCorruptionMembrane Manual? 0 Play Time 00:10:32 Cumulative 661.8 hours Start 2026.07.14 @ 15:09:47 End 2026.07.14 @ 15:18:39 Sessions 1 Manual Loads 0 Difficulty Rogue Special Mode Winter2019/RPGLIKE Game No. 287 Rogue 133 Adventurer 154 Explorer 0 Win Type - Total 22 Types 4/5/4/3/2/1/0/1/1/1 Lore% 95 Gallery% 88 Achievement% 68 Wizard Run 0 Options --------- Layout 0 ASCII 0 Keyboard 0 Movement Numpad Keybinds 0 Fullscreen 2 Font 18/SmallcapsGlow Map View 76x50 Zoom Use 0% Tactical HUD 1 Map Filters NONE Filters NONE Steam 1 RUN: 64dd177e-52ae-4a98-874a-3d9bc7a1e993